[Event "Queens Festival Europe 2022"]
[Site "Tornelo"]
[Date "2022.06.19"]
[Round "3.6"]
[White "Ismayil, Malak"]
[Black "Kanyamarala, Trisha"]
[Result "1-0"]
[ECO "B51"]
[WhiteElo "2001"]
[BlackElo "2127"]
[Annotator "NA RC"]
[PlyCount "81"]
[EventDate "2022.06.19"]
[EventType "swiss"]
[EventCountry "NET"]
[SourceTitle "playchess.com"]
[Source "ChessBase"]
[SourceQuality "1"]
[TimeControl "180+2"]

1. e4 {[%emt 0:00:02]} c5 {[%emt 0:00:06]} 2. Nf3 {[%emt 0:00:02]} d6 {[%emt 0:00:03]} 3. Bb5+ {[%emt 0:00:02]} Nd7 {[%emt 0:00:09]} 4. O-O {[%emt 0:00:02]} Ngf6 {[%emt 0:00:06]} 5. Qe2 {[%emt 0:00:02]} a6 {[%emt 0:00:04]} 6. Bxd7+ {[%emt 0:00:02]} Bxd7 {[%emt 0:00:02]} 7. h3 {[%emt 0:00:01]} e6 {[%emt 0:00:03]} 8. Rd1 {[%emt 0:00:03]} Be7 {[%emt 0:00:05]} 9. d4 {[%emt 0:00:01]} cxd4 {[%emt 0:00:02]} 10. Nxd4 {[%emt 0:00:01]} O-O {[%emt 0:00:02]} 11. c4 {[%emt 0:00:07]} Rb8 {[%emt 0:00:20]} 12. Nc3 {[%emt 0:00:02]} Qa5 {[%emt 0:00:07]} 13. Bd2 {[%emt 0:00:10]} Qc7 {[%emt 0:00:07]} 14. Rac1 {[%emt 0:00:03]} Bc6 {[%emt 0:00:09]} 15. b3 {[%emt 0:00:05]} Bd7 {[%emt 0:00:27]} 16. Bg5 {[%emt 0:00:03]} h6 {[%emt 0:00:08]} 17. Bh4 {[%emt 0:00:06]} Rfd8 {[%emt 0:00:14]} 18. Bg3 {[%emt 0:00:02]} Qa5 {[%emt 0:00:17]} 19. Qe1 {[%emt 0:00:13]} b5 {[%emt 0:00:13]} 20. cxb5 {[%emt 0:00:09]} axb5 {[%emt 0:00:04]} 21. Kh2 {[%emt 0:00:10]} Nh5 {[%emt 0:00:07]} 22. Nd5 {[%emt 0:00:22]} Qxe1 {[%emt 0:00:05]} 23. Nxe7+ {[%emt 0:00:02]} Kf8 {[%emt 0:00:02]} 24. Ng6+ {[%emt 0:00:06]} Ke8 {[%emt 0:00:32]} 25. Rxe1 {[%emt 0:00:06]} Nxg3 {[%emt 0:00:06]} 26. Kxg3 {[%emt 0:00:04]} fxg6 {[%emt 0:00:02]} 27. Rcd1 {[%emt 0:00:09]} e5 {[%emt 0:00:03]} 28. Nc2 {[%emt 0:00:02]} Be6 {[%emt 0:00:04]} 29. Nb4 {[%emt 0:00:01]} Rbc8 {[%emt 0:00:01]} 30. Rc1 {[%emt 0:00:04]} Kd7 {[%emt 0:00:05]} 31. Red1 {[%emt 0:00:03]} Ra8 {[%emt 0:00:04]} 32. Rc6 {[%emt 0:00:05]} Ke7 {[%emt 0:00:03]} 33. Rb6 {[%emt 0:00:03]} Rd7 {[%emt 0:00:04]} 34. Rxb5 {[%emt 0:00:05]} Kf7 {[%emt 0:00:02]} 35. Rb6 {[%emt 0:00:02]} Rc8 {[%emt 0:00:01]} 36. Rbxd6 {[%emt 0:00:03]} Rc3+ {[%emt 0:00:02]} 37. f3 {[%emt 0:00:02]} Rb7 {[%emt 0:00:01]} 38. Nd3 {[%emt 0:00:06]} Rc2 {[%emt 0:00:02]} 39. Nxe5+ {[%emt 0:00:05]} Kf6 {[%emt 0:00:01]} 40. Nc6 {[%emt 0:00:04]} Rxa2 {[%emt 0:00:03]} 41. Rxe6+ {[%emt 0:00:02]} 1-0

[Event "Queens Festival Europe 2022"]
[Site "Tornelo"]
[Date "2022.06.19"]
[Round "3.6"]
[White "Can, Isil"]
[Black "Stastna, Martina"]
[Result "0-1"]
[ECO "C54"]
[WhiteElo "1901"]
[BlackElo "1912"]
[Annotator "NA RC"]
[PlyCount "62"]
[EventDate "2022.06.19"]
[EventType "swiss"]
[EventCountry "NET"]
[SourceTitle "playchess.com"]
[Source "ChessBase"]
[SourceQuality "1"]
[TimeControl "180+2"]

1. e4 {[%emt 0:00:02]} e5 {[%emt 0:00:04]} 2. Nf3 {[%emt 0:00:02]} Nc6 {[%emt 0:00:03]} 3. Bc4 {[%emt 0:00:02]} Bc5 {[%emt 0:00:04]} 4. d3 {[%emt 0:00:01]} Nf6 {[%emt 0:00:04]} 5. Nbd2 {[%emt 0:00:01]} d6 {[%emt 0:00:09]} 6. c3 {[%emt 0:00:03]} Be6 {[%emt 0:00:08]} 7. O-O {[%emt 0:00:04]} O-O {[%emt 0:00:07]} 8. b4 {[%emt 0:00:04]} Bb6 {[%emt 0:00:03]} 9. a4 {[%emt 0:00:01]} a5 {[%emt 0:00:09]} 10. b5 {[%emt 0:00:02]} Ne7 {[%emt 0:00:02]} 11. Bxe6 {[%emt 0:00:17]} fxe6 {[%emt 0:00:03]} 12. Nc4 {[%emt 0:00:02]} Bc5 {[%emt 0:00:05]} 13. d4 {[%emt 0:00:22]} exd4 {[%emt 0:00:03]} 14. cxd4 {[%emt 0:00:02]} Bb4 {[%emt 0:00:02]} 15. Qd3 {[%emt 0:00:33]} Ng6 {[%emt 0:00:05]} 16. Bg5 {[%emt 0:00:03]} Qe8 {[%emt 0:00:09]} 17. Ncd2 {[%emt 0:00:10]} e5 {[%emt 0:00:09]} 18. Qc4+ {[%emt 0:00:07]} Kh8 {[%emt 0:00:08]} 19. Qxc7 {[%emt 0:00:08]} Bxd2 {[%emt 0:00:20]} 20. Nxd2 {[%emt 0:00:08]} exd4 {[%emt 0:00:16]} 21. Bxf6 {[%emt 0:00:10]} Rxf6 {[%emt 0:00:04]} 22. Qxb7 {[%emt 0:00:01]} Nf4 {[%emt 0:00:12]} 23. Nf3 {[%emt 0:00:17]} d3 {[%emt 0:00:15]} 24. Rad1 {[%emt 0:00:39]} Re6 {[%emt 0:00:14]} 25. g3 {[%emt 0:00:06]} Ne2+ {[%emt 0:00:10]} 26. Kg2 {[%emt 0:00:04]} Rxe4 {[%emt 0:00:03]} 27. Rxd3 {[%emt 0:00:07]} Rd8 {[%emt 0:00:09]} 28. Kh1 {[%emt 0:00:05]} Qh5 {[%emt 0:00:09]} 29. Qxe4 {[%emt 0:00:06]} Re8 {[%emt 0:00:04]} 30. Qd5 {[%emt 0:00:02]} Qh3 {[%emt 0:00:05]} 31. Ng5 {[%emt 0:00:03]} Qxf1# {[%emt 0:00:02]} 0-1

[Event "Queens Festival Europe 2022"]
[Site "Tornelo"]
[Date "2022.06.19"]
[Round "3.6"]
[White "Thornton, Filipina"]
[Black "van den Brink, Nienke"]
[Result "0-1"]
[ECO "B90"]
[WhiteElo "1660"]
[BlackElo "1771"]
[Annotator "NA RC"]
[PlyCount "98"]
[EventDate "2022.06.19"]
[EventType "swiss"]
[EventCountry "NET"]
[SourceTitle "playchess.com"]
[Source "ChessBase"]
[SourceQuality "1"]
[TimeControl "180+2"]

1. e4 {[%emt 0:00:02]} c5 {[%emt 0:00:05]} 2. Nf3 {[%emt 0:00:03]} d6 {[%emt 0:00:02]} 3. d4 {[%emt 0:00:02]} cxd4 {[%emt 0:00:01]} 4. Nxd4 {[%emt 0:00:02]} Nf6 {[%emt 0:00:01]} 5. Nc3 {[%emt 0:00:01]} a6 {[%emt 0:00:01]} 6. f3 {[%emt 0:00:02]} e5 {[%emt 0:00:01]} 7. Nb3 {[%emt 0:00:04]} Be6 {[%emt 0:00:03]} 8. Be3 {[%emt 0:00:02]} Be7 {[%emt 0:00:01]} 9. Qd2 {[%emt 0:00:03]} O-O {[%emt 0:00:02]} 10. g4 {[%emt 0:00:03]} b5 {[%emt 0:00:08]} 11. h4 {[%emt 0:00:03]} d5 {[%emt 0:00:04]} 12. exd5 {[%emt 0:00:03]} Nxd5 {[%emt 0:00:02]} 13. Nxd5 {[%emt 0:00:04]} Qxd5 {[%emt 0:00:05]} 14. Qxd5 {[%emt 0:00:13]} Bxd5 {[%emt 0:00:02]} 15. Be2 {[%emt 0:00:02]} Nc6 {[%emt 0:00:05]} 16. O-O-O {[%emt 0:00:03]} Be6 {[%emt 0:00:03]} 17. Nc5 {[%emt 0:00:05]} Bc8 {[%emt 0:00:08]} 18. f4 {[%emt 0:00:22]} exf4 {[%emt 0:00:06]} 19. Bxf4 {[%emt 0:00:02]} Bxc5 {[%emt 0:00:02]} 20. Bf3 {[%emt 0:00:05]} Bb7 {[%emt 0:00:04]} 21. Rd7 {[%emt 0:00:05]} Ne5 {[%emt 0:00:11]} 22. Bxb7 {[%emt 0:00:13]} Nxd7 {[%emt 0:00:03]} 23. Bxa8 {[%emt 0:00:02]} Rxa8 {[%emt 0:00:02]} 24. Re1 {[%emt 0:00:03]} h6 {[%emt 0:00:05]} 25. g5 {[%emt 0:00:06]} hxg5 {[%emt 0:00:03]} 26. Bxg5 {[%emt 0:00:03]} Nb6 {[%emt 0:00:06]} 27. Re5 {[%emt 0:00:04]} Bd4 {[%emt 0:00:05]} 28. Re7 {[%emt 0:00:05]} Rd8 {[%emt 0:00:07]} 29. c3 {[%emt 0:00:10]} Bc5 {[%emt 0:00:07]} 30. Rc7 {[%emt 0:00:03]} f6 {[%emt 0:00:06]} 31. Bxf6 {[%emt 0:00:05]} Be3+ {[%emt 0:00:02]} 32. Kc2 {[%emt 0:00:05]} gxf6 {[%emt 0:00:03]} 33. h5 {[%emt 0:00:02]} Nd5 {[%emt 0:00:06]} 34. Rb7 {[%emt 0:00:04]} Bg5 {[%emt 0:00:02]} 35. Kb3 {[%emt 0:00:03]} Kh8 {[%emt 0:00:08]} 36. Ra7 {[%emt 0:00:03]} Rd6 {[%emt 0:00:07]} 37. a4 {[%emt 0:00:08]} bxa4+ {[%emt 0:00:03]} 38. Kxa4 {[%emt 0:00:02]} Nb6+ {[%emt 0:00:03]} 39. Ka3 {[%emt 0:00:03]} Nc4+ {[%emt 0:00:03]} 40. Kb3 {[%emt 0:00:02]} Rc6 {[%emt 0:00:05]} 41. Re7 {[%emt 0:00:07]} Bc1 {[%emt 0:00:07]} 42. Re2 {[%emt 0:00:18]} Bg5 {[%emt 0:00:03]} 43. Rh2 {[%emt 0:00:03]} Na5+ {[%emt 0:00:05]} 44. Kc2 {[%emt 0:00:02]} Rd6 {[%emt 0:00:04]} 45. Re2 {[%emt 0:00:03]} Nc4 {[%emt 0:00:05]} 46. Re7 {[%emt 0:00:04]} Rd2+ {[%emt 0:00:06]} 47. Kb3 {[%emt 0:00:02]} Nxb2 {[%emt 0:00:03]} 48. Ra7 {[%emt 0:00:03]} Nd3 {[%emt 0:00:04]} 49. Rxa6 {[%emt 0:00:04]} Nc5+ {[%emt 0:00:03]} 0-1

[Event "Queens Festival Europe 2022"]
[Site "Tornelo"]
[Date "2022.06.19"]
[Round "3.7"]
[White "Okuyaz, Duru"]
[Black "Maksimovic, Suzana"]
[Result "1-0"]
[ECO "B33"]
[WhiteElo "2090"]
[BlackElo "2145"]
[Annotator "NA RC"]
[PlyCount "81"]
[EventDate "2022.06.19"]
[EventType "swiss"]
[EventCountry "NET"]
[SourceTitle "playchess.com"]
[Source "ChessBase"]
[SourceQuality "1"]
[TimeControl "180+2"]

1. e4 {[%emt 0:00:02]} c5 {[%emt 0:00:05]} 2. Nf3 {[%emt 0:00:02]} Nc6 {[%emt 0:00:01]} 3. d4 {[%emt 0:00:01]} cxd4 {[%emt 0:00:02]} 4. Nxd4 {[%emt 0:00:02]} Nf6 {[%emt 0:00:01]} 5. Nc3 {[%emt 0:00:01]} e5 {[%emt 0:00:01]} 6. Ndb5 {[%emt 0:00:01]} d6 {[%emt 0:00:02]} 7. Bg5 {[%emt 0:00:02]} a6 {[%emt 0:00:01]} 8. Bxf6 {[%emt 0:00:01]} gxf6 {[%emt 0:00:02]} 9. Na3 {[%emt 0:00:02]} b5 {[%emt 0:00:02]} 10. Nd5 {[%emt 0:00:01]} f5 {[%emt 0:00:01]} 11. g3 {[%emt 0:00:01]} Bg7 {[%emt 0:00:06]} 12. Bg2 {[%emt 0:00:02]} O-O {[%emt 0:00:27]} 13. O-O {[%emt 0:00:02]} fxe4 {[%emt 0:00:21]} 14. Bxe4 {[%emt 0:00:01]} f5 {[%emt 0:00:09]} 15. Bg2 {[%emt 0:00:02]} Ra7 {[%emt 0:00:17]} 16. c3 {[%emt 0:00:04]} Kh8 {[%emt 0:00:05]} 17. Nc2 {[%emt 0:00:03]} f4 {[%emt 0:00:16]} 18. a4 {[%emt 0:00:35]} Bf5 {[%emt 0:00:50]} 19. axb5 {[%emt 0:00:07]} axb5 {[%emt 0:00:02]} 20. Rxa7 {[%emt 0:00:20]} Nxa7 {[%emt 0:00:02]} 21. gxf4 {[%emt 0:00:02]} exf4 {[%emt 0:00:04]} 22. Nd4 {[%emt 0:00:03]} Be5 {[%emt 0:00:10]} 23. Nxf5 {[%emt 0:00:32]} Rxf5 {[%emt 0:00:02]} 24. Qf3 {[%emt 0:00:11]} Qh4 {[%emt 0:00:10]} 25. Ra1 {[%emt 0:00:05]} Rf7 {[%emt 0:00:03]} 26. Nb4 {[%emt 0:00:06]} Rg7 {[%emt 0:00:08]} 27. Nd3 {[%emt 0:00:19]} Nc8 {[%emt 0:00:11]} 28. Ra8 {[%emt 0:00:02]} Rg8 {[%emt 0:00:02]} 29. Nxe5 {[%emt 0:00:05]} dxe5 {[%emt 0:00:02]} 30. Qe4 {[%emt 0:00:04]} Qg5 {[%emt 0:00:09]} 31. h4 {[%emt 0:00:14]} Qg7 {[%emt 0:00:05]} 32. h5 {[%emt 0:00:04]} Nd6 {[%emt 0:00:03]} 33. Rxg8+ {[%emt 0:00:03]} Qxg8 {[%emt 0:00:01]} 34. Qxe5+ {[%emt 0:00:01]} Qg7 {[%emt 0:00:01]} 35. Qxd6 {[%emt 0:00:02]} h6 {[%emt 0:00:04]} 36. Qd8+ {[%emt 0:00:02]} Kh7 {[%emt 0:00:02]} 37. Qd3+ {[%emt 0:00:02]} Kh8 {[%emt 0:00:02]} 38. Qxb5 {[%emt 0:00:01]} f3 {[%emt 0:00:04]} 39. Qe8+ {[%emt 0:00:02]} Kh7 {[%emt 0:00:02]} 40. Qe4+ {[%emt 0:00:01]} Kh8 {[%emt 0:00:02]} 41. Qxf3 {[%emt 0:00:01]} 1-0

[Event "Queens Festival Europe 2022"]
[Site "Tornelo"]
[Date "2022.06.19"]
[Round "3.7"]
[White "Malikova, Ulviyya"]
[Black "Mdivani, Maka"]
[Result "1-0"]
[ECO "E90"]
[WhiteElo "1805"]
[BlackElo "1901"]
[Annotator "NA RC"]
[PlyCount "69"]
[EventDate "2022.06.19"]
[EventType "swiss"]
[EventCountry "NET"]
[SourceTitle "playchess.com"]
[Source "ChessBase"]
[SourceQuality "1"]
[TimeControl "180+2"]

1. d4 {[%emt 0:00:02]} Nf6 {[%emt 0:00:08]} 2. c4 {[%emt 0:00:02]} d6 {[%emt 0:00:02]} 3. Nf3 {[%emt 0:00:06]} g6 {[%emt 0:00:04]} 4. Nc3 {[%emt 0:00:07]} Bg7 {[%emt 0:00:07]} 5. e4 {[%emt 0:00:06]} Nbd7 {[%emt 0:00:03]} 6. Be2 {[%emt 0:00:04]} a5 {[%emt 0:00:04]} 7. O-O {[%emt 0:00:07]} e5 {[%emt 0:00:02]} 8. dxe5 {[%emt 0:00:11]} dxe5 {[%emt 0:00:05]} 9. Qc2 {[%emt 0:00:06]} c6 {[%emt 0:00:10]} 10. Na4 {[%emt 0:00:09]} O-O {[%emt 0:00:11]} 11. Be3 {[%emt 0:00:06]} Ng4 {[%emt 0:00:12]} 12. Bc1 {[%emt 0:00:10]} Rb8 {[%emt 0:00:20]} 13. c5 {[%emt 0:00:07]} b5 {[%emt 0:00:11]} 14. cxb6 {[%emt 0:00:04]} Nxb6 {[%emt 0:00:04]} 15. Nc5 {[%emt 0:00:05]} Qc7 {[%emt 0:00:18]} 16. h3 {[%emt 0:00:05]} Nf6 {[%emt 0:00:04]} 17. Be3 {[%emt 0:00:05]} Nbd7 {[%emt 0:00:11]} 18. Bc4 {[%emt 0:00:13]} Nxc5 {[%emt 0:00:11]} 19. Bxc5 {[%emt 0:00:06]} Re8 {[%emt 0:00:08]} 20. Ng5 {[%emt 0:00:05]} Be6 {[%emt 0:00:08]} 21. Nxe6 {[%emt 0:00:04]} fxe6 {[%emt 0:00:03]} 22. Rfd1 {[%emt 0:00:06]} Rbd8 {[%emt 0:00:10]} 23. Rxd8 {[%emt 0:00:09]} Qxd8 {[%emt 0:00:08]} 24. Rd1 {[%emt 0:00:05]} Qc8 {[%emt 0:00:06]} 25. Bb6 {[%emt 0:00:08]} Qa8 {[%emt 0:00:07]} 26. Bxe6+ {[%emt 0:00:05]} Kh8 {[%emt 0:00:12]} 27. Rd6 {[%emt 0:00:07]} c5 {[%emt 0:00:03]} 28. Bd5 {[%emt 0:00:04]} Nxd5 {[%emt 0:00:03]} 29. exd5 {[%emt 0:00:05]} c4 {[%emt 0:00:10]} 30. Qxc4 {[%emt 0:00:05]} Rc8 {[%emt 0:00:03]} 31. Rc6 {[%emt 0:00:04]} Rf8 {[%emt 0:00:05]} 32. d6 {[%emt 0:00:05]} Qe8 {[%emt 0:00:04]} 33. Rc7 {[%emt 0:00:05]} Qa8 {[%emt 0:00:08]} 34. d7 {[%emt 0:00:05]} Bf6 {[%emt 0:00:01]} 35. Rc8 {[%emt 0:00:05]} 1-0

[Event "Queens Festival Europe 2022"]
[Site "Tornelo"]
[Date "2022.06.19"]
[Round "3.7"]
[White "Posadas, Rayelynn"]
[Black "Vukosavljevic, Tatjana"]
[Result "1-0"]
[ECO "D77"]
[WhiteElo "1648"]
[BlackElo "1758"]
[Annotator "NA RC"]
[PlyCount "91"]
[EventDate "2022.06.19"]
[EventType "swiss"]
[EventCountry "NET"]
[SourceTitle "playchess.com"]
[Source "ChessBase"]
[SourceQuality "1"]
[TimeControl "180+2"]

1. Nf3 {[%emt 0:00:02]} Nf6 {[%emt 0:00:05]} 2. d4 {[%emt 0:00:02]} g6 {[%emt 0:00:01]} 3. g3 {[%emt 0:00:03]} Bg7 {[%emt 0:00:01]} 4. Bg2 {[%emt 0:00:01]} O-O {[%emt 0:00:01]} 5. O-O {[%emt 0:00:01]} d5 {[%emt 0:00:01]} 6. c4 {[%emt 0:00:01]} e6 {[%emt 0:00:04]} 7. Nc3 {[%emt 0:00:02]} b6 {[%emt 0:00:02]} 8. b3 {[%emt 0:00:05]} Bb7 {[%emt 0:00:01]} 9. Ba3 {[%emt 0:00:02]} Re8 {[%emt 0:00:03]} 10. Ne5 {[%emt 0:00:01]} Nbd7 {[%emt 0:00:09]} 11. Rc1 {[%emt 0:00:04]} Nxe5 {[%emt 0:00:17]} 12. dxe5 {[%emt 0:00:03]} Nd7 {[%emt 0:00:03]} 13. cxd5 {[%emt 0:00:01]} exd5 {[%emt 0:00:08]} 14. Nxd5 {[%emt 0:00:11]} c6 {[%emt 0:00:27]} 15. Nf6+ {[%emt 0:00:39]} Nxf6 {[%emt 0:00:05]} 16. exf6 {[%emt 0:00:04]} Bxf6 {[%emt 0:00:13]} 17. Qxd8 {[%emt 0:00:12]} Raxd8 {[%emt 0:00:04]} 18. Bxc6 {[%emt 0:00:03]} Bxc6 {[%emt 0:00:04]} 19. Rxc6 {[%emt 0:00:01]} Rxe2 {[%emt 0:00:02]} 20. Rxf6 {[%emt 0:00:03]} Rxa2 {[%emt 0:00:06]} 21. Bd6 {[%emt 0:00:15]} Kg7 {[%emt 0:00:14]} 22. Bc7 {[%emt 0:00:12]} Rc8 {[%emt 0:00:18]} 23. Rc6 {[%emt 0:00:03]} Re8 {[%emt 0:00:22]} 24. Bf4 {[%emt 0:00:07]} Rb2 {[%emt 0:00:09]} 25. Rc3 {[%emt 0:00:12]} b5 {[%emt 0:00:04]} 26. Ra1 {[%emt 0:00:25]} Re7 {[%emt 0:00:25]} 27. b4 {[%emt 0:00:14]} Rd7 {[%emt 0:00:10]} 28. Be5+ {[%emt 0:00:10]} f6 {[%emt 0:00:06]} 29. Rc7 {[%emt 0:00:02]} Rxc7 {[%emt 0:00:04]} 30. Bxc7 {[%emt 0:00:00]} Rxb4 {[%emt 0:00:04]} 31. Rxa7 {[%emt 0:00:00]} Kh6 {[%emt 0:00:05]} 32. Bf4+ {[%emt 0:00:05]} Kh5 {[%emt 0:00:01]} 33. Rxh7+ {[%emt 0:00:03]} Kg4 {[%emt 0:00:03]} 34. Be5 {[%emt 0:00:13]} Kf3 {[%emt 0:00:02]} 35. h4 {[%emt 0:00:20]} fxe5 {[%emt 0:00:02]} 36. Rf7+ {[%emt 0:00:01]} Kg4 {[%emt 0:00:02]} 37. Kg2 {[%emt 0:00:02]} Rb2 {[%emt 0:00:03]} 38. Re7 {[%emt 0:00:02]} b4 {[%emt 0:00:05]} 39. Rxe5 {[%emt 0:00:01]} b3 {[%emt 0:00:01]} 40. Re4+ {[%emt 0:00:02]} Kf5 {[%emt 0:00:02]} 41. Rb4 {[%emt 0:00:01]} Rb1 {[%emt 0:00:02]} 42. Kf3 {[%emt 0:00:01]} b2 {[%emt 0:00:02]} 43. Rb5+ {[%emt 0:00:00]} Ke6 {[%emt 0:00:03]} 44. Kg4 {[%emt 0:00:03]} Kf6 {[%emt 0:00:02]} 45. f4 {[%emt 0:00:01]} Ke6 {[%emt 0:00:02]} 46. Rb6+ {[%emt 0:00:01]} 1-0

[Event "Queens Festival Europe 2022"]
[Site "Tornelo"]
[Date "2022.06.19"]
[Round "3.7"]
[White "Caku, Kler"]
[Black "Hariharan, Shambavi"]
[Result "1-0"]
[ECO "B12"]
[WhiteElo "1542"]
[BlackElo "1517"]
[Annotator "NA RC"]
[PlyCount "53"]
[EventDate "2022.06.19"]
[EventType "swiss"]
[EventCountry "NET"]
[SourceTitle "playchess.com"]
[Source "ChessBase"]
[SourceQuality "1"]
[TimeControl "180+2"]

1. e4 {[%emt 0:00:02]} c6 {[%emt 0:00:04]} 2. d4 {[%emt 0:00:02]} d5 {[%emt 0:00:01]} 3. e5 {[%emt 0:00:01]} c5 {[%emt 0:00:01]} 4. c3 {[%emt 0:00:01]} Nc6 {[%emt 0:00:01]} 5. Nf3 {[%emt 0:00:02]} Bg4 {[%emt 0:00:03]} 6. Be2 {[%emt 0:00:05]} e6 {[%emt 0:00:02]} 7. h3 {[%emt 0:00:01]} Bxf3 {[%emt 0:00:03]} 8. Bxf3 {[%emt 0:00:00]} cxd4 {[%emt 0:00:01]} 9. cxd4 {[%emt 0:00:10]} Nge7 {[%emt 0:00:02]} 10. Nc3 {[%emt 0:00:20]} Nf5 {[%emt 0:00:02]} 11. Ne2 {[%emt 0:00:07]} Bb4+ {[%emt 0:00:04]} 12. Bd2 {[%emt 0:00:08]} Qa5 {[%emt 0:00:02]} 13. Bc3 {[%emt 0:00:16]} O-O {[%emt 0:00:16]} 14. O-O {[%emt 0:00:03]} Qb6 {[%emt 0:00:10]} 15. Qd2 {[%emt 0:00:23]} Be7 {[%emt 0:00:05]} 16. Rfd1 {[%emt 0:00:10]} Rac8 {[%emt 0:00:21]} 17. Qd3 {[%emt 0:00:12]} Nb4 {[%emt 0:00:08]} 18. Bxb4 {[%emt 0:00:07]} Bxb4 {[%emt 0:00:04]} 19. Bxd5 {[%emt 0:00:13]} exd5 {[%emt 0:00:18]} 20. Qxf5 {[%emt 0:00:02]} Qe6 {[%emt 0:00:13]} 21. Qd3 {[%emt 0:00:14]} Qg6 {[%emt 0:00:17]} 22. Qb3 {[%emt 0:00:17]} Qa6 {[%emt 0:00:34]} 23. Nf4 {[%emt 0:00:07]} Qc4 {[%emt 0:00:33]} 24. Nxd5 {[%emt 0:00:16]} Qxb3 {[%emt 0:00:12]} 25. axb3 {[%emt 0:00:00]} Rcd8 {[%emt 0:00:04]} 26. Nxb4 {[%emt 0:00:02]} Rc8 {[%emt 0:00:11]} 27. Rxa7 {[%emt 0:00:05]} 1-0

[Event "Queens Festival Europe 2022"]
[Site "Tornelo"]
[Date "2022.06.19"]
[Round "3.8"]
[White "Ayzenberg, Alena"]
[Black "Machlik, Edit"]
[Result "1-0"]
[ECO "E11"]
[WhiteElo "2016"]
[BlackElo "2084"]
[Annotator "NA RC"]
[PlyCount "67"]
[EventDate "2022.06.19"]
[EventType "swiss"]
[EventCountry "NET"]
[SourceTitle "playchess.com"]
[Source "ChessBase"]
[SourceQuality "1"]
[TimeControl "180+2"]

1. d4 {[%emt 0:00:02]} Nf6 {[%emt 0:00:05]} 2. c4 {[%emt 0:00:02]} e6 {[%emt 0:00:02]} 3. Nf3 {[%emt 0:00:02]} Bb4+ {[%emt 0:00:02]} 4. Bd2 {[%emt 0:00:03]} a5 {[%emt 0:00:02]} 5. Nc3 {[%emt 0:00:04]} d6 {[%emt 0:00:09]} 6. g3 {[%emt 0:00:09]} Nc6 {[%emt 0:00:06]} 7. Bg2 {[%emt 0:00:10]} O-O {[%emt 0:00:02]} 8. O-O {[%emt 0:00:04]} e5 {[%emt 0:00:07]} 9. d5 {[%emt 0:00:06]} Ne7 {[%emt 0:00:03]} 10. Qc2 {[%emt 0:00:10]} Bf5 {[%emt 0:00:37]} 11. e4 {[%emt 0:00:12]} Bxc3 {[%emt 0:00:04]} 12. exf5 {[%emt 0:00:06]} Bxd2 {[%emt 0:00:14]} 13. Nxd2 {[%emt 0:00:04]} Qd7 {[%emt 0:00:03]} 14. Bh3 {[%emt 0:01:00]} c6 {[%emt 0:00:10]} 15. Ne4 {[%emt 0:00:46]} cxd5 {[%emt 0:00:24]} 16. Nxf6+ {[%emt 0:00:03]} gxf6 {[%emt 0:00:02]} 17. cxd5 {[%emt 0:00:02]} Rfc8 {[%emt 0:00:33]} 18. Qe4 {[%emt 0:00:08]} Kh8 {[%emt 0:00:22]} 19. f4 {[%emt 0:00:18]} Rc5 {[%emt 0:00:04]} 20. Rad1 {[%emt 0:00:05]} Rac8 {[%emt 0:00:03]} 21. b3 {[%emt 0:00:03]} Rc2 {[%emt 0:00:04]} 22. fxe5 {[%emt 0:00:02]} dxe5 {[%emt 0:00:02]} 23. Qh4 {[%emt 0:00:03]} Ng8 {[%emt 0:00:03]} 24. Bg2 {[%emt 0:00:02]} Rxa2 {[%emt 0:00:05]} 25. Rf2 {[%emt 0:00:03]} Rxf2 {[%emt 0:00:04]} 26. Kxf2 {[%emt 0:00:01]} Rc2+ {[%emt 0:00:02]} 27. Kg1 {[%emt 0:00:02]} Qd6 {[%emt 0:00:04]} 28. Kh1 {[%emt 0:00:02]} Qd7 {[%emt 0:00:08]} 29. g4 {[%emt 0:00:02]} Qd6 {[%emt 0:00:08]} 30. Rf1 {[%emt 0:00:02]} Qc7 {[%emt 0:00:04]} 31. g5 {[%emt 0:00:02]} fxg5 {[%emt 0:00:02]} 32. Qxg5 {[%emt 0:00:02]} Qe7 {[%emt 0:00:01]} 33. f6 {[%emt 0:00:02]} Qd6 {[%emt 0:00:03]} 34. Qg7# {[%emt 0:00:02]} 1-0

[Event "Queens Festival Europe 2022"]
[Site "Tornelo"]
[Date "2022.06.19"]
[Round "3.8"]
[White "Grimaldi, Angela Flavia"]
[Black "Roy, Ali"]
[Result "0-1"]
[ECO "C10"]
[WhiteElo "1995"]
[BlackElo "1893"]
[Annotator "NA RC"]
[PlyCount "74"]
[EventDate "2022.06.19"]
[EventType "swiss"]
[EventCountry "NET"]
[SourceTitle "playchess.com"]
[Source "ChessBase"]
[SourceQuality "1"]
[TimeControl "180+2"]

1. e4 {[%emt 0:00:02]} e6 {[%emt 0:00:05]} 2. d4 {[%emt 0:00:02]} d5 {[%emt 0:00:02]} 3. Nc3 {[%emt 0:00:02]} dxe4 {[%emt 0:00:02]} 4. Nxe4 {[%emt 0:00:02]} Nd7 {[%emt 0:00:01]} 5. Nf3 {[%emt 0:00:04]} Ngf6 {[%emt 0:00:02]} 6. Bd3 {[%emt 0:00:01]} Nxe4 {[%emt 0:00:05]} 7. Bxe4 {[%emt 0:00:02]} Nf6 {[%emt 0:00:01]} 8. Bd3 {[%emt 0:00:01]} Be7 {[%emt 0:00:01]} 9. O-O {[%emt 0:00:03]} O-O {[%emt 0:00:02]} 10. c3 {[%emt 0:00:08]} c5 {[%emt 0:00:02]} 11. Be3 {[%emt 0:00:10]} cxd4 {[%emt 0:00:04]} 12. Nxd4 {[%emt 0:00:06]} Qc7 {[%emt 0:00:14]} 13. h3 {[%emt 0:00:10]} a6 {[%emt 0:00:02]} 14. Qc2 {[%emt 0:00:08]} b5 {[%emt 0:00:06]} 15. a3 {[%emt 0:00:06]} Bb7 {[%emt 0:00:03]} 16. Rfd1 {[%emt 0:00:30]} Rfd8 {[%emt 0:00:02]} 17. Qe2 {[%emt 0:00:37]} Rac8 {[%emt 0:00:05]} 18. Rac1 {[%emt 0:00:04]} h6 {[%emt 0:00:13]} 19. c4 {[%emt 0:00:31]} bxc4 {[%emt 0:00:11]} 20. Rxc4 {[%emt 0:00:03]} Qd6 {[%emt 0:00:07]} 21. Rxc8 {[%emt 0:00:03]} Rxc8 {[%emt 0:00:04]} 22. b4 {[%emt 0:00:30]} Qd5 {[%emt 0:00:07]} 23. Nf3 {[%emt 0:00:10]} Qb3 {[%emt 0:00:08]} 24. Rc1 {[%emt 0:00:08]} Rd8 {[%emt 0:00:12]} 25. Bxa6 {[%emt 0:00:04]} Bxa6 {[%emt 0:00:11]} 26. Qxa6 {[%emt 0:00:00]} Rd1+ {[%emt 0:00:13]} 27. Rxd1 {[%emt 0:00:01]} Qxd1+ {[%emt 0:00:01]} 28. Kh2 {[%emt 0:00:01]} Nd5 {[%emt 0:00:08]} 29. Qc8+ {[%emt 0:00:02]} Kh7 {[%emt 0:00:04]} 30. Bc5 {[%emt 0:00:05]} Bf6 {[%emt 0:00:09]} 31. Qf8 {[%emt 0:00:03]} Nf4 {[%emt 0:00:22]} 32. Be3 {[%emt 0:00:03]} Ng6 {[%emt 0:00:11]} 33. Qxf7 {[%emt 0:00:02]} Qd6+ {[%emt 0:00:05]} 34. g3 {[%emt 0:00:03]} e5 {[%emt 0:00:19]} 35. Kg2 {[%emt 0:00:02]} e4 {[%emt 0:00:03]} 36. Nh2 {[%emt 0:00:02]} Ne5 {[%emt 0:00:08]} 37. Ng4 {[%emt 0:00:03]} Nxf7 {[%emt 0:00:07]} 0-1